[Event "Early-Titled-Tuesday-Blitz-July-09-2024"]
[Site "Chess.com"]
[Date "2024.07.09"]
[Round "10"]
[White "DFeco"]
[Black "Sasha_Solovev_777"]
[Result "1-0"]
[WhiteElo "2436"]
[BlackElo "2293"]
[TimeControl "180+1"]
[EndTime "9:55:56 PDT"]
[Termination "DFeco won on time"]

1. c4 {[%clk 0:03:00.9]} 1... Nf6 {[%clk 0:02:59.5]} 2. g3 {[%clk 0:03:01.4]}
2... g6 {[%clk 0:02:59.8]} 3. Bg2 {[%clk 0:03:02]} 3... Bg7 {[%clk 0:03:00.5]}
4. Nc3 {[%clk 0:03:01.8]} 4... O-O {[%clk 0:03:01]} 5. e4 {[%clk 0:03:02]} 5...
d6 {[%clk 0:03:01.3]} 6. Nge2 {[%clk 0:03:02.4]} 6... Nbd7 {[%clk 0:03:01]} 7.
O-O {[%clk 0:03:02.8]} 7... c6 {[%clk 0:03:01.2]} 8. d4 {[%clk 0:03:02.1]} 8...
Nb6 {[%clk 0:03:00.6]} 9. b3 {[%clk 0:03:01.4]} 9... Qc7 {[%clk 0:02:59.2]} 10.
Bb2 {[%clk 0:03:00.8]} 10... e5 {[%clk 0:02:50.4]} 11. d5 {[%clk 0:03:00.6]}
11... Bg4 {[%clk 0:02:46.3]} 12. f3 {[%clk 0:03:00.2]} 12... Bd7 {[%clk
0:02:40.8]} 13. h3 {[%clk 0:03:00.5]} 13... Rfd8 {[%clk 0:02:40.4]} 14. Kh2
{[%clk 0:03:00]} 14... h5 {[%clk 0:02:39.2]} 15. f4 {[%clk 0:03:00.1]} 15... h4
{[%clk 0:02:21.1]} 16. fxe5 {[%clk 0:02:59.5]} 16... hxg3+ {[%clk 0:02:18.7]}
17. Nxg3 {[%clk 0:02:58.2]} 17... dxe5 {[%clk 0:02:18]} 18. d6 {[%clk
0:02:58.4]} 18... Qc8 {[%clk 0:02:17.9]} 19. c5 {[%clk 0:02:58.9]} 19... Bh6
{[%clk 0:01:45.7]} 20. Bc1 {[%clk 0:02:53]} 20... Bxc1 {[%clk 0:01:43.9]} 21.
Rxc1 {[%clk 0:02:52.6]} 21... Bg4 {[%clk 0:01:39.9]} 22. hxg4 {[%clk 0:02:39.6]}
22... Nxg4+ {[%clk 0:01:40.8]} 23. Kg1 {[%clk 0:02:39.7]} 23... Ne3 {[%clk
0:01:34.3]} 24. Qf3 {[%clk 0:02:39.6]} 24... Nxf1 {[%clk 0:01:33.8]} 25. Rxf1
{[%clk 0:02:40.3]} 25... Qe6 {[%clk 0:01:30.3]} 26. cxb6 {[%clk 0:02:39.8]}
26... Rxd6 {[%clk 0:01:30.6]} 27. bxa7 {[%clk 0:02:36.8]} 27... Rxa7 {[%clk
0:01:31.5]} 28. Rd1 {[%clk 0:02:34]} 28... Rxd1+ {[%clk 0:01:29.5]} 29. Qxd1
{[%clk 0:02:33.9]} 29... b5 {[%clk 0:01:28.4]} 30. b4 {[%clk 0:02:26]} 30... Rd7
{[%clk 0:01:25.1]} 31. Qc2 {[%clk 0:02:21.4]} 31... Qc4 {[%clk 0:01:22]} 32. a3
{[%clk 0:02:11.3]} 32... c5 {[%clk 0:01:02.2]} 33. Nge2 {[%clk 0:01:59.6]} 33...
cxb4 {[%clk 0:01:00.1]} 34. axb4 {[%clk 0:01:59.7]} 34... Qxb4 {[%clk
0:00:59.4]} 35. Nd5 {[%clk 0:01:53.3]} 35... Qe1+ {[%clk 0:00:47.6]} 36. Kh2
{[%clk 0:01:46]} 36... Qh4+ {[%clk 0:00:43.5]} 37. Bh3 {[%clk 0:01:43.4]} 37...
Qf2+ {[%clk 0:00:37.9]} 38. Bg2 {[%clk 0:01:43.6]} 38... Qh4+ {[%clk 0:00:38]}
39. Kg1 {[%clk 0:01:44.2]} 39... Qe1+ {[%clk 0:00:38.2]} 40. Bf1 {[%clk
0:01:44.5]} 40... Ra7 {[%clk 0:00:32.2]} 41. Qc8+ {[%clk 0:01:32.1]} 41... Kg7
{[%clk 0:00:31.2]} 42. Qb8 {[%clk 0:01:30]} 42... Ra1 {[%clk 0:00:20.2]} 43.
Qxe5+ {[%clk 0:01:29.5]} 1-0

[Event "Early-Titled-Tuesday-Blitz-July-09-2024"]
[Site "Chess.com"]
[Date "2024.07.09"]
[Round "10"]
[White "Ginger_GM"]
[Black "mwpchess"]
[Result "0-1"]
[WhiteElo "2607"]
[BlackElo "2759"]
[TimeControl "180+1"]
[EndTime "9:56:03 PDT"]
[Termination "mwpchess won by resignation"]

1. d4 {[%clk 0:03:00.9]} 1... Nf6 {[%clk 0:02:59.8]} 2. c4 {[%clk 0:03:00.1]}
2... e6 {[%clk 0:02:59.9]} 3. Nf3 {[%clk 0:02:59.6]} 3... d5 {[%clk 0:02:59.7]}
4. Nc3 {[%clk 0:02:59.2]} 4... Bb4 {[%clk 0:02:57.3]} 5. Bg5 {[%clk 0:02:54.6]}
5... dxc4 {[%clk 0:02:57.2]} 6. e3 {[%clk 0:02:51.1]} 6... b5 {[%clk 0:02:55.9]}
7. Ne5 {[%clk 0:02:43.8]} 7... Bb7 {[%clk 0:02:51.2]} 8. Be2 {[%clk 0:02:42.8]}
8... a6 {[%clk 0:02:37.9]} 9. Bf3 {[%clk 0:02:40]} 9... Bxf3 {[%clk 0:02:37.8]}
10. Qxf3 {[%clk 0:02:39.6]} 10... Qd5 {[%clk 0:02:37.7]} 11. Qf4 {[%clk
0:01:45.7]} 11... Bxc3+ {[%clk 0:02:35.8]} 12. bxc3 {[%clk 0:01:44.9]} 12...
Nbd7 {[%clk 0:02:35.9]} 13. Nxd7 {[%clk 0:01:40.2]} 13... Nxd7 {[%clk
0:02:32.6]} 14. e4 {[%clk 0:01:32.4]} 14... Qd6 {[%clk 0:02:28.8]} 15. Qh4
{[%clk 0:01:20.2]} 15... f6 {[%clk 0:02:24.2]} 16. Bf4 {[%clk 0:01:05.6]} 16...
e5 {[%clk 0:02:23]} 17. dxe5 {[%clk 0:01:05.2]} 17... Nxe5 {[%clk 0:02:17.9]}
18. O-O {[%clk 0:00:51.6]} 18... O-O {[%clk 0:02:05.9]} 19. Rad1 {[%clk
0:00:51]} 19... Qe7 {[%clk 0:02:05.2]} 20. Qg3 {[%clk 0:00:44.3]} 20... Nd3
{[%clk 0:01:56.7]} 21. Bxc7 {[%clk 0:00:37.7]} 21... Qxe4 {[%clk 0:01:56.6]} 22.
h4 {[%clk 0:00:32.4]} 22... Qg6 {[%clk 0:01:49.5]} 23. Qf3 {[%clk 0:00:29]}
23... h5 {[%clk 0:01:49.1]} 24. Bb6 {[%clk 0:00:27.9]} 24... Rae8 {[%clk
0:01:42.6]} 25. Bd4 {[%clk 0:00:26.7]} 25... Re4 {[%clk 0:01:38.8]} 26. g3
{[%clk 0:00:25.6]} 26... Rfe8 {[%clk 0:01:32.8]} 27. Kg2 {[%clk 0:00:25.3]}
27... Qg4 {[%clk 0:01:32.2]} 28. a4 {[%clk 0:00:20.2]} 28... Qxf3+ {[%clk
0:01:26.3]} 29. Kxf3 {[%clk 0:00:21.1]} 29... Ne1+ {[%clk 0:01:23]} 30. Rfxe1
{[%clk 0:00:17.1]} 30... Rxe1 {[%clk 0:01:23.9]} 31. Rd2 {[%clk 0:00:16.5]}
31... Rb1 {[%clk 0:01:17.1]} 32. axb5 {[%clk 0:00:16]} 32... axb5 {[%clk
0:01:09.2]} 33. Kf4 {[%clk 0:00:14.9]} 33... b4 {[%clk 0:01:08.2]} 34. cxb4
{[%clk 0:00:14.5]} 34... Rxb4 {[%clk 0:01:09.1]} 35. Kf5 {[%clk 0:00:12.5]}
35... Kf7 {[%clk 0:01:08]} 36. Bc3 {[%clk 0:00:10.7]} 36... Rb5+ {[%clk
0:01:05.6]} 37. Kf4 {[%clk 0:00:11.1]} 37... Rb3 {[%clk 0:01:02.8]} 38. Bd4
{[%clk 0:00:08.9]} 38... Rd3 {[%clk 0:01:00]} 0-1

[Event "Early-Titled-Tuesday-Blitz-July-09-2024"]
[Site "Chess.com"]
[Date "2024.07.09"]
[Round "10"]
[White "oykuince"]
[Black "Tagir45"]
[Result "1/2-1/2"]
[WhiteElo "2189"]
[BlackElo "2612"]
[TimeControl "180+1"]
[EndTime "9:56:03 PDT"]
[Termination "Game drawn by repetition"]

1. e4 {[%clk 0:03:00.9]} 1... a6 {[%clk 0:02:50.1]} 2. d4 {[%clk 0:02:58.3]}
2... b5 {[%clk 0:02:49.4]} 3. a4 {[%clk 0:02:57.3]} 3... Bb7 {[%clk 0:02:49]} 4.
Nd2 {[%clk 0:02:56]} 4... b4 {[%clk 0:02:45.1]} 5. c4 {[%clk 0:02:54.8]} 5...
bxc3 {[%clk 0:02:43.4]} 6. bxc3 {[%clk 0:02:53.9]} 6... e6 {[%clk 0:02:42.9]} 7.
Bd3 {[%clk 0:02:51.3]} 7... Nf6 {[%clk 0:02:40.8]} 8. Ngf3 {[%clk 0:02:49.6]}
8... c5 {[%clk 0:02:39.9]} 9. O-O {[%clk 0:02:47.2]} 9... Be7 {[%clk 0:02:39.9]}
10. e5 {[%clk 0:02:46.7]} 10... Nd5 {[%clk 0:02:38.6]} 11. Ne4 {[%clk
0:02:47.3]} 11... O-O {[%clk 0:02:35.8]} 12. Qe2 {[%clk 0:02:45.9]} 12... cxd4
{[%clk 0:02:29.3]} 13. cxd4 {[%clk 0:02:44.4]} 13... Nc6 {[%clk 0:02:29.4]} 14.
Bg5 {[%clk 0:02:39.4]} 14... Nxd4 {[%clk 0:01:56.9]} 15. Nxd4 {[%clk 0:02:33.1]}
15... Bxg5 {[%clk 0:01:56.7]} 16. g3 {[%clk 0:01:33.1]} 16... Be7 {[%clk
0:01:47.9]} 17. Rab1 {[%clk 0:01:29]} 17... Nb4 {[%clk 0:01:07.2]} 18. Rxb4
{[%clk 0:01:25.7]} 18... Bxb4 {[%clk 0:01:06.1]} 19. Nf6+ {[%clk 0:01:02.6]}
19... gxf6 {[%clk 0:00:54.4]} 20. Bxh7+ {[%clk 0:00:16.3]} 20... Kxh7 {[%clk
0:00:29.9]} 21. Qh5+ {[%clk 0:00:16.5]} 21... Kg7 {[%clk 0:00:29.3]} 22. Qg4+
{[%clk 0:00:16.6]} 22... Kh7 {[%clk 0:00:28.7]} 23. Qh5+ {[%clk 0:00:16.3]}
23... Kg7 {[%clk 0:00:28.8]} 24. Qg4+ {[%clk 0:00:16.7]} 24... Kh7 {[%clk
0:00:28.9]} 25. Qh5+ {[%clk 0:00:16.2]} 1/2-1/2

[Event "Early-Titled-Tuesday-Blitz-July-09-2024"]
[Site "Chess.com"]
[Date "2024.07.09"]
[Round "10"]
[White "KubaGepard"]
[Black "Rosh1610"]
[Result "0-1"]
[WhiteElo "2634"]
[BlackElo "2502"]
[TimeControl "180+1"]
[EndTime "9:56:05 PDT"]
[Termination "Rosh1610 won by resignation"]

1. e4 {[%clk 0:03:00.4]} 1... c5 {[%clk 0:02:57.4]} 2. Nf3 {[%clk 0:02:59.3]}
2... d6 {[%clk 0:02:57.1]} 3. d4 {[%clk 0:02:59.2]} 3... cxd4 {[%clk 0:02:58]}
4. Nxd4 {[%clk 0:02:59.9]} 4... Nf6 {[%clk 0:02:56.9]} 5. Nc3 {[%clk 0:03:00.2]}
5... a6 {[%clk 0:02:56.7]} 6. Be3 {[%clk 0:02:58]} 6... e5 {[%clk 0:02:56.5]} 7.
Nf3 {[%clk 0:02:56.7]} 7... Be7 {[%clk 0:02:56.4]} 8. Bc4 {[%clk 0:02:55.4]}
8... O-O {[%clk 0:02:55.2]} 9. O-O {[%clk 0:02:54.8]} 9... Nc6 {[%clk
0:02:54.1]} 10. Re1 {[%clk 0:02:52.5]} 10... Na5 {[%clk 0:02:47.4]} 11. Bf1
{[%clk 0:02:48.7]} 11... Be6 {[%clk 0:02:45.6]} 12. Nd5 {[%clk 0:02:45.8]} 12...
Bxd5 {[%clk 0:02:38.8]} 13. exd5 {[%clk 0:02:43.6]} 13... Rc8 {[%clk 0:02:34.5]}
14. b3 {[%clk 0:02:40.6]} 14... b5 {[%clk 0:02:32.6]} 15. h3 {[%clk 0:02:31]}
15... Ne4 {[%clk 0:02:29.4]} 16. Bd2 {[%clk 0:01:49.1]} 16... f5 {[%clk
0:02:23.7]} 17. a4 {[%clk 0:01:36.8]} 17... Nb7 {[%clk 0:02:00.7]} 18. axb5
{[%clk 0:01:33.4]} 18... axb5 {[%clk 0:02:01.6]} 19. Bxb5 {[%clk 0:01:32.9]}
19... Qb6 {[%clk 0:01:58.7]} 20. Bc6 {[%clk 0:01:21.1]} 20... Qxf2+ {[%clk
0:01:50.6]} 21. Kh1 {[%clk 0:01:19.8]} 21... Qg3 {[%clk 0:01:42.4]} 22. Be3
{[%clk 0:01:09.5]} 22... Nbc5 {[%clk 0:01:40.6]} 23. Ra7 {[%clk 0:01:05.3]}
23... Bg5 {[%clk 0:01:34.5]} 24. Nxg5 {[%clk 0:01:03.1]} 24... Nxg5 {[%clk
0:01:35.4]} 25. Bxc5 {[%clk 0:00:52.8]} 25... dxc5 {[%clk 0:01:34.3]} 26. Rf1
{[%clk 0:00:44.4]} 26... f4 {[%clk 0:01:30]} 27. Qg4 {[%clk 0:00:41.4]} 27...
Qxg4 {[%clk 0:01:27]} 28. hxg4 {[%clk 0:00:41.1]} 28... e4 {[%clk 0:01:21.3]}
29. Re1 {[%clk 0:00:39.2]} 29... e3 {[%clk 0:01:20.1]} 30. Bd7 {[%clk
0:00:38.2]} 30... Rcd8 {[%clk 0:01:16.9]} 31. c4 {[%clk 0:00:35.8]} 31... Rf7
{[%clk 0:01:12.5]} 32. Be6 {[%clk 0:00:20.4]} 32... Nxe6 {[%clk 0:01:12]} 33.
Rxf7 {[%clk 0:00:19.9]} 33... Kxf7 {[%clk 0:01:12.9]} 34. dxe6+ {[%clk
0:00:20.3]} 34... Kxe6 {[%clk 0:01:13.8]} 35. g3 {[%clk 0:00:20.8]} 35... g5
{[%clk 0:01:12.8]} 36. Kg2 {[%clk 0:00:19.2]} 36... Rd2+ {[%clk 0:01:11.8]} 37.
Kh3 {[%clk 0:00:18]} 37... Ke5 {[%clk 0:01:11.6]} 38. gxf4+ {[%clk 0:00:18.4]}
38... gxf4 {[%clk 0:01:12.5]} 39. g5 {[%clk 0:00:15.8]} 39... Ke4 {[%clk
0:01:12.1]} 40. Kg4 {[%clk 0:00:15.2]} 40... Rg2+ {[%clk 0:01:10.7]} 41. Kh3
{[%clk 0:00:15.5]} 41... f3 {[%clk 0:01:11.4]} 42. Kh4 {[%clk 0:00:13.9]} 42...
f2 {[%clk 0:01:11.7]} 43. Rh1 {[%clk 0:00:14.2]} 43... Rg1 {[%clk 0:01:12.4]}
0-1

[Event "Early-Titled-Tuesday-Blitz-July-09-2024"]
[Site "Chess.com"]
[Date "2024.07.09"]
[Round "10"]
[White "gau248"]
[Black "IMVadim"]
[Result "0-1"]
[WhiteElo "2606"]
[BlackElo "2466"]
[TimeControl "180+1"]
[EndTime "9:56:05 PDT"]
[Termination "IMVadim won on time"]

1. e4 {[%clk 0:02:55.7]} 1... c5 {[%clk 0:02:59.1]} 2. Nf3 {[%clk 0:02:52.1]}
2... d6 {[%clk 0:02:59.4]} 3. d4 {[%clk 0:02:52.4]} 3... cxd4 {[%clk 0:03:00.3]}
4. Nxd4 {[%clk 0:02:52.8]} 4... Nf6 {[%clk 0:03:00.1]} 5. Nc3 {[%clk 0:02:53.1]}
5... a6 {[%clk 0:03:00.6]} 6. Be3 {[%clk 0:02:47.4]} 6... e5 {[%clk 0:03:00.8]}
7. Nf3 {[%clk 0:02:46.9]} 7... Be7 {[%clk 0:02:59.8]} 8. h3 {[%clk 0:02:47.3]}
8... O-O {[%clk 0:02:59.1]} 9. Qd2 {[%clk 0:02:47.6]} 9... b5 {[%clk 0:02:58]}
10. a3 {[%clk 0:02:39.1]} 10... Bb7 {[%clk 0:02:57.3]} 11. Bd3 {[%clk
0:02:35.3]} 11... Nbd7 {[%clk 0:02:55.4]} 12. Nd5 {[%clk 0:02:30.6]} 12... Bxd5
{[%clk 0:02:46.2]} 13. exd5 {[%clk 0:02:17.8]} 13... Nxd5 {[%clk 0:02:47.1]} 14.
Be4 {[%clk 0:02:11.3]} 14... Nxe3 {[%clk 0:02:46.9]} 15. Bxa8 {[%clk 0:02:07.2]}
15... Nxg2+ {[%clk 0:02:45.2]} 16. Kf1 {[%clk 0:02:07.3]} 16... Qxa8 {[%clk
0:02:41.8]} 17. Kxg2 {[%clk 0:02:07]} 17... e4 {[%clk 0:02:42.3]} 18. Rhe1
{[%clk 0:01:58.4]} 18... exf3+ {[%clk 0:02:40.7]} 19. Kh1 {[%clk 0:01:58]} 19...
Ne5 {[%clk 0:02:36.2]} 20. Rad1 {[%clk 0:01:56.7]} 20... Qc6 {[%clk 0:02:33.6]}
21. c3 {[%clk 0:01:53.7]} 21... Qc4 {[%clk 0:02:29.9]} 22. Qd4 {[%clk
0:01:51.7]} 22... Qxd4 {[%clk 0:02:19.5]} 23. cxd4 {[%clk 0:01:52.6]} 23... Ng6
{[%clk 0:02:19.7]} 24. Re3 {[%clk 0:01:52.8]} 24... Bf6 {[%clk 0:02:19.3]} 25.
Rxf3 {[%clk 0:01:52.6]} 25... Rc8 {[%clk 0:02:20]} 26. Rc3 {[%clk 0:01:52.4]}
26... Rxc3 {[%clk 0:02:19.1]} 27. bxc3 {[%clk 0:01:53.3]} 27... d5 {[%clk
0:02:19]} 28. a4 {[%clk 0:01:53.5]} 28... bxa4 {[%clk 0:02:13.4]} 29. Ra1 {[%clk
0:01:53.2]} 29... Bd8 {[%clk 0:02:13.9]} 30. Rxa4 {[%clk 0:01:52.2]} 30... a5
{[%clk 0:02:14.5]} 31. Ra3 {[%clk 0:01:44.4]} 31... Kf8 {[%clk 0:02:12.7]} 32.
Rb3 {[%clk 0:01:44.2]} 32... Ke8 {[%clk 0:02:13.3]} 33. Rb5 {[%clk 0:01:43.9]}
33... Nf4 {[%clk 0:02:11.5]} 34. Rb7 {[%clk 0:01:31]} 34... Ne6 {[%clk
0:02:04.7]} 35. Kg2 {[%clk 0:01:28.6]} 35... Bc7 {[%clk 0:02:04.3]} 36. Kf3
{[%clk 0:01:27.2]} 36... Kd7 {[%clk 0:02:03.8]} 37. Ra7 {[%clk 0:01:27.4]} 37...
Ng5+ {[%clk 0:02:02]} 38. Ke3 {[%clk 0:01:26.6]} 38... Nxh3 {[%clk 0:01:59.7]}
39. Ra8 {[%clk 0:01:26.7]} 39... Ng5 {[%clk 0:01:57.8]} 40. Rg8 {[%clk
0:01:24.4]} 40... Ne6 {[%clk 0:01:47.8]} 41. Rh8 {[%clk 0:01:19.7]} 41... h6
{[%clk 0:01:47.8]} 42. Ra8 {[%clk 0:01:17.8]} 42... h5 {[%clk 0:01:46.9]} 43.
Kd3 {[%clk 0:01:17.1]} 43... h4 {[%clk 0:01:45.9]} 44. c4 {[%clk 0:01:15.5]}
44... dxc4+ {[%clk 0:01:43.1]} 45. Kxc4 {[%clk 0:01:16.4]} 45... h3 {[%clk
0:01:43.6]} 46. d5 {[%clk 0:01:14.1]} 46... Nd8 {[%clk 0:01:34.4]} 47. d6 {[%clk
0:01:11.8]} 47... Kxd6 {[%clk 0:01:31.5]} 0-1

[Event "Early-Titled-Tuesday-Blitz-July-09-2024"]
[Site "Chess.com"]
[Date "2024.07.09"]
[Round "10"]
[White "Payyappat"]
[Black "yesilikeorangejuice"]
[Result "0-1"]
[WhiteElo "2408"]
[BlackElo "2523"]
[TimeControl "180+1"]
[EndTime "9:56:11 PDT"]
[Termination "yesilikeorangejuice won on time"]

1. e4 {[%clk 0:03:00.9]} 1... e6 {[%clk 0:02:55.7]} 2. d4 {[%clk 0:03:00.5]}
2... d5 {[%clk 0:02:55.8]} 3. Nc3 {[%clk 0:03:01.3]} 3... Nf6 {[%clk 0:02:54.9]}
4. Bg5 {[%clk 0:02:57.9]} 4... Be7 {[%clk 0:02:54.4]} 5. e5 {[%clk 0:02:57.9]}
5... Nfd7 {[%clk 0:02:54.8]} 6. Bxe7 {[%clk 0:02:57.5]} 6... Qxe7 {[%clk
0:02:55.7]} 7. h4 {[%clk 0:02:57.2]} 7... a6 {[%clk 0:02:54.6]} 8. f4 {[%clk
0:02:52.8]} 8... c5 {[%clk 0:02:54]} 9. Nf3 {[%clk 0:02:51.4]} 9... Nc6 {[%clk
0:02:53.6]} 10. Qd2 {[%clk 0:02:49.8]} 10... b5 {[%clk 0:02:53]} 11. dxc5 {[%clk
0:02:42.1]} 11... Qxc5 {[%clk 0:02:53.9]} 12. O-O-O {[%clk 0:02:42.5]} 12... b4
{[%clk 0:02:53.8]} 13. Ne2 {[%clk 0:02:41.9]} 13... a5 {[%clk 0:02:54.3]} 14.
Ned4 {[%clk 0:02:41.2]} 14... Ba6 {[%clk 0:02:53]} 15. Nxc6 {[%clk 0:02:31.8]}
15... Qxc6 {[%clk 0:02:51.2]} 16. f5 {[%clk 0:02:32]} 16... a4 {[%clk
0:02:43.5]} 17. fxe6 {[%clk 0:02:25.3]} 17... fxe6 {[%clk 0:02:41.9]} 18. Nd4
{[%clk 0:02:25.5]} 18... Qb6 {[%clk 0:02:37.8]} 19. Qg5 {[%clk 0:02:24.8]} 19...
O-O {[%clk 0:02:31.7]} 20. h5 {[%clk 0:02:00.9]} 20... h6 {[%clk 0:01:55.1]} 21.
Qe7 {[%clk 0:01:27.7]} 21... Nxe5 {[%clk 0:01:24.7]} 22. Qxe6+ {[%clk
0:01:14.1]} 22... Qxe6 {[%clk 0:01:23.5]} 23. Nxe6 {[%clk 0:01:15]} 23... Rxf1
{[%clk 0:01:23.7]} 24. Rhxf1 {[%clk 0:01:14.5]} 24... Bxf1 {[%clk 0:01:24.6]}
25. Rxf1 {[%clk 0:01:15.2]} 25... b3 {[%clk 0:01:24.4]} 26. a3 {[%clk
0:00:19.6]} 26... Rc8 {[%clk 0:01:11.3]} 27. c3 {[%clk 0:00:19.1]} 27... Nd3+
{[%clk 0:01:07.5]} 28. Kb1 {[%clk 0:00:16.3]} 28... Re8 {[%clk 0:01:07.9]} 29.
Nd4 {[%clk 0:00:15.9]} 29... Re5 {[%clk 0:00:56.6]} 30. g4 {[%clk 0:00:15.1]}
30... Re4 {[%clk 0:00:56.6]} 31. Rg1 {[%clk 0:00:11.5]} 31... Rf4 {[%clk
0:00:56.8]} 32. Rd1 {[%clk 0:00:09]} 32... Rf2 {[%clk 0:00:54.3]} 33. Ka1 {[%clk
0:00:02.1]} 33... Nxb2 {[%clk 0:00:53.9]} 0-1

[Event "Early-Titled-Tuesday-Blitz-July-09-2024"]
[Site "Chess.com"]
[Date "2024.07.09"]
[Round "10"]
[White "Kotofeyca"]
[Black "AsaHoffmann"]
[Result "1-0"]
[WhiteElo "2511"]
[BlackElo "2397"]
[TimeControl "180+1"]
[EndTime "9:56:13 PDT"]
[Termination "Kotofeyca won by checkmate"]

1. d4 {[%clk 0:03:00.9]} 1... Nf6 {[%clk 0:02:54.4]} 2. c4 {[%clk 0:03:00.5]}
2... c5 {[%clk 0:02:54.2]} 3. Nf3 {[%clk 0:03:00]} 3... cxd4 {[%clk 0:02:53.8]}
4. Nxd4 {[%clk 0:03:00.9]} 4... e5 {[%clk 0:02:53.6]} 5. Nb5 {[%clk 0:03:00.3]}
5... d5 {[%clk 0:02:53.1]} 6. cxd5 {[%clk 0:03:00.3]} 6... Bb4+ {[%clk
0:02:52.8]} 7. Bd2 {[%clk 0:02:47.7]} 7... Bc5 {[%clk 0:02:49.6]} 8. d6 {[%clk
0:02:37.7]} 8... Ne4 {[%clk 0:02:46.2]} 9. e3 {[%clk 0:02:16.6]} 9... Nxd6
{[%clk 0:02:44]} 10. Bc3 {[%clk 0:02:07.8]} 10... Nc6 {[%clk 0:02:40.4]} 11. Qd5
{[%clk 0:01:58.5]} 11... Nxb5 {[%clk 0:02:28]} 12. Qxc5 {[%clk 0:01:51.6]} 12...
Nxc3 {[%clk 0:02:27.5]} 13. Nxc3 {[%clk 0:01:48.1]} 13... Qe7 {[%clk 0:02:23.4]}
14. Qxe7+ {[%clk 0:01:38.2]} 14... Kxe7 {[%clk 0:02:19.9]} 15. Nd5+ {[%clk
0:01:38.2]} 15... Kf8 {[%clk 0:02:09.6]} 16. Bb5 {[%clk 0:01:29.7]} 16... Bd7
{[%clk 0:01:58]} 17. O-O-O {[%clk 0:01:14.7]} 17... Rd8 {[%clk 0:01:55.3]} 18.
a3 {[%clk 0:00:49.5]} 18... g6 {[%clk 0:01:45.4]} 19. Nb4 {[%clk 0:00:46.1]}
19... Ke7 {[%clk 0:01:43.2]} 20. Bxc6 {[%clk 0:00:40.5]} 20... Bxc6 {[%clk
0:01:36]} 21. Nxc6+ {[%clk 0:00:40.3]} 21... bxc6 {[%clk 0:01:35.9]} 22. Kc2
{[%clk 0:00:40.3]} 22... Rd5 {[%clk 0:01:30.8]} 23. e4 {[%clk 0:00:29.7]} 23...
Rd6 {[%clk 0:01:25.9]} 24. Rxd6 {[%clk 0:00:26.7]} 24... Kxd6 {[%clk 0:01:24.9]}
25. Rd1+ {[%clk 0:00:27.6]} 25... Kc7 {[%clk 0:01:24.2]} 26. Rd3 {[%clk
0:00:23]} 26... a5 {[%clk 0:01:23.1]} 27. Rf3 {[%clk 0:00:19.8]} 27... Rf8
{[%clk 0:01:22.1]} 28. Rf6 {[%clk 0:00:19.6]} 28... Kb6 {[%clk 0:01:15.6]} 29.
Kc3 {[%clk 0:00:19.5]} 29... Kc5 {[%clk 0:01:14.8]} 30. h4 {[%clk 0:00:17.7]}
30... h5 {[%clk 0:01:14.1]} 31. g3 {[%clk 0:00:15.3]} 31... Kb5 {[%clk
0:01:12.1]} 32. f3 {[%clk 0:00:09.6]} 32... Kc5 {[%clk 0:01:11.8]} 33. b3 {[%clk
0:00:07.5]} 33... Kb5 {[%clk 0:01:10.2]} 34. f4 {[%clk 0:00:05.3]} 34... exf4
{[%clk 0:01:05.1]} 35. gxf4 {[%clk 0:00:06.2]} 35... Re8 {[%clk 0:00:59.9]} 36.
Kd4 {[%clk 0:00:04.9]} 36... Re7 {[%clk 0:00:59.8]} 37. e5 {[%clk 0:00:04.6]}
37... c5+ {[%clk 0:00:56.4]} 38. Kc3 {[%clk 0:00:02.8]} 38... Rd7 {[%clk
0:00:52.3]} 39. a4# {[%clk 0:00:02.1]} 1-0

[Event "Early-Titled-Tuesday-Blitz-July-09-2024"]
[Site "Chess.com"]
[Date "2024.07.09"]
[Round "10"]
[White "MagnusCarlsen"]
[Black "Prizant_academy"]
[Result "1-0"]
[WhiteElo "3194"]
[BlackElo "3037"]
[TimeControl "180+1"]
[EndTime "9:56:14 PDT"]
[Termination "MagnusCarlsen won on time"]

1. e4 {[%clk 0:03:00.9]} 1... c5 {[%clk 0:02:59.9]} 2. Nf3 {[%clk 0:03:01]} 2...
d6 {[%clk 0:03:00.1]} 3. Bc4 {[%clk 0:03:01.1]} 3... Nf6 {[%clk 0:02:56]} 4. d3
{[%clk 0:03:01.3]} 4... Nc6 {[%clk 0:02:47.8]} 5. O-O {[%clk 0:03:01.4]} 5...
Bg4 {[%clk 0:02:47.1]} 6. h3 {[%clk 0:03:01.5]} 6... Bh5 {[%clk 0:02:43.7]} 7.
Nbd2 {[%clk 0:03:00.6]} 7... e6 {[%clk 0:02:43.1]} 8. Re1 {[%clk 0:02:58.9]}
8... d5 {[%clk 0:02:41.8]} 9. Bb5 {[%clk 0:02:52.5]} 9... Qc7 {[%clk 0:02:33.3]}
10. Nf1 {[%clk 0:02:27.9]} 10... O-O-O {[%clk 0:02:20.2]} 11. Bxc6 {[%clk
0:02:10.5]} 11... Qxc6 {[%clk 0:02:18.6]} 12. e5 {[%clk 0:02:09.8]} 12... Nd7
{[%clk 0:02:16.6]} 13. Ng3 {[%clk 0:02:10.3]} 13... Bg6 {[%clk 0:02:15.3]} 14.
Nh4 {[%clk 0:02:10.4]} 14... Be7 {[%clk 0:02:06.1]} 15. Nxg6 {[%clk 0:02:10.3]}
15... hxg6 {[%clk 0:02:05]} 16. Qg4 {[%clk 0:02:07.6]} 16... Rh4 {[%clk
0:01:56.3]} 17. Qe2 {[%clk 0:02:07.8]} 17... Kb8 {[%clk 0:01:49.1]} 18. Nf1
{[%clk 0:02:07.1]} 18... g5 {[%clk 0:01:31.9]} 19. Nh2 {[%clk 0:02:07.2]} 19...
Rdh8 {[%clk 0:01:09.3]} 20. Bd2 {[%clk 0:02:06]} 20... a6 {[%clk 0:00:43.6]} 21.
c4 {[%clk 0:02:03.4]} 21... Nb6 {[%clk 0:00:35.6]} 22. b3 {[%clk 0:02:02.1]}
22... Nd7 {[%clk 0:00:28.6]} 23. Rac1 {[%clk 0:02:01.7]} 23... d4 {[%clk
0:00:28.4]} 24. Rb1 {[%clk 0:01:53.3]} 24... b6 {[%clk 0:00:27.2]} 25. b4 {[%clk
0:01:53.2]} 25... cxb4 {[%clk 0:00:27.9]} 26. Bxb4 {[%clk 0:01:53.7]} 26... Bxb4
{[%clk 0:00:26.9]} 27. Rxb4 {[%clk 0:01:54.6]} 27... Ka7 {[%clk 0:00:27.6]} 28.
Reb1 {[%clk 0:01:54.7]} 28... Qc5 {[%clk 0:00:24.8]} 29. Nf3 {[%clk 0:01:53.7]}
29... Rf4 {[%clk 0:00:25.3]} 30. Nxg5 {[%clk 0:01:48.7]} 30... Re8 {[%clk
0:00:18.3]} 31. Qb2 {[%clk 0:01:15]} 31... Rb8 {[%clk 0:00:14.9]} 32. Ne4 {[%clk
0:01:11.7]} 32... Qxe5 {[%clk 0:00:14.1]} 33. c5 {[%clk 0:01:12.3]} 33... bxc5
{[%clk 0:00:08.7]} 34. Rb7+ {[%clk 0:01:06.2]} 34... Ka8 {[%clk 0:00:08.8]} 35.
Qa3 {[%clk 0:00:59.5]} 35... Rxb7 {[%clk 0:00:04.2]} 36. Qxa6+ {[%clk
0:00:59.6]} 36... Ra7 {[%clk 0:00:04.1]} 37. Qc6+ {[%clk 0:01:00.1]} 1-0